fUSD/lending_fUSD_20250930
["ID","MTS","AMOUNT","RATE_DAILY","PERIOD"]
[388546687,1759236799330,-2806.65,0.00021369,2]
[388546688,1759236799339,-8671.548947,0.00021369,2]
[388546689,1759236799349,-500.0,0.00021369,2]
[388546690,1759236799358,-3307.6,0.00021369,2]
[388546691,1759236799368,-1877.95,0.00021369,2]
[388546692,1759236799378,-500.0,0.00021369,2]
[388546693,1759236799387,-4344.73,0.00021369,2]
[388546694,1759236799397,-1232.05,0.00021369,2]
[388546695,1759236799407,-385.303121,0.00021369,2]
[388546696,1759236799416,-316.486851,0.00021369,2]
[388546697,1759236799426,-500.0,0.00021369,2]
[388546698,1759236799435,-1688.46,0.00021369,2]
[388546699,1759236799445,-500.0,0.00021369,2]
[388546700,1759236799454,-3390.857945,0.00021369,2]
[388546701,1759236799464,-374.715851,0.00021369,2]
[388546702,1759236799474,-898.43,0.00021369,2]
[388546703,1759236799483,-7423.351587,0.00021369,2]
[388546704,1759236799492,-5020.85,0.00021369,2]
[388546705,1759236799502,-773.64,0.00021369,2]
[388546706,1759236799511,-4173.34,0.00021369,2]
[388546707,1759236799520,-2033.24,0.00021369,2]
[388546708,1759236799530,-500.0,0.00021369,2]
[388546709,1759236799540,-1401.38,0.00021369,2]
[388546710,1759236799550,-2013.75,0.00021369,2]
[388546711,1759236799560,-500.0,0.00021369,2]
[388546712,1759236799570,-500.0,0.00021369,2]
[388546713,1759236799582,-3105.83,0.00021369,2]
[388546714,1759236799592,-2207.05,0.00021369,2]
[388546715,1759236799602,-3439.22,0.00021369,2]
[388546716,1759236799611,-3888.52,0.00021369,2]
[388546717,1759236799621,-3031.79,0.00021369,2]
[388546718,1759236799630,-500.0,0.00021369,2]
[388546719,1759236799639,-500.0,0.00021369,2]
[388546720,1759236799649,-500.0,0.00021369,2]
[388546721,1759236799659,-2473.07,0.00021369,2]
[388546722,1759236799668,-280.72968804,0.00021369,2]
[388546723,1759236799678,-659.75,0.00021369,2]
[388546724,1759236799687,-3168.12,0.00021369,2]
[388546725,1759236799697,-500.0,0.00021369,2]
[388546726,1759236799707,-2996.33,0.00021369,2]
[388546727,1759236799717,-500.0,0.00021369,2]
[388546728,1759236799726,-2000.64,0.00021369,2]
[388546729,1759236799736,-500.0,0.00021369,2]
[388546730,1759236799745,-500.0,0.00021369,2]
[388546731,1759236799755,-1390.14,0.00021369,2]
[388546732,1759236799764,-3873.86,0.00021369,2]
[388546733,1759236799774,-1903.48,0.00021369,2]
[388546734,1759236799784,-3324.17,0.00021369,2]
[388546735,1759236799794,-500.0,0.00021369,2]
[388546736,1759236799804,-500.0,0.00021369,2]
[388546737,1759236799814,-4579.72,0.00021369,2]
[388546738,1759236799823,-3419.82,0.00021369,2]
[388546739,1759236799833,-3713.1,0.00021369,2]
[388546740,1759236799843,-500.0,0.00021369,2]
[388546741,1759236799852,-772.84,0.00021369,2]
[388546742,1759236799866,-2506.86,0.00021369,2]
[388546743,1759236799876,-2339.41,0.00021369,2]
[388546744,1759236799886,-560.42,0.00021369,2]
[388546745,1759236799896,-2792.33,0.00021369,2]
[388546746,1759236799905,-1899.13,0.00021369,2]
[388546747,1759236799915,-4139.96,0.00021369,2]
[388546748,1759236799924,-604.76,0.00021369,2]
[388546749,1759236799936,-872.23,0.00021369,2]
[388546750,1759236799946,-1756.01,0.00021369,2]
[388546751,1759236799956,-1299.41,0.00021369,2]
[388546752,1759236799965,-1184.74,0.00021369,2]
[388546753,1759236799975,-500.0,0.00021369,2]
[388546754,1759236799985,-1843.86,0.00021369,2]
[388546755,1759236799994,-500.0,0.00021369,2]
[388546756,1759236800004,-500.0,0.00021369,2]
[388546757,1759236800014,-5305.3,0.00021369,2]
[388546758,1759236800023,-881.11,0.00021369,2]
[388546759,1759236800033,-6734.31,0.00021369,2]
[388546760,1759236800043,-500.0,0.00021369,2]
[388546761,1759236800053,-740.42,0.00021369,2]
[388546762,1759236800062,-517.4,0.00021369,2]
[388546763,1759236800072,-500.0,0.00021369,2]
[388546764,1759236800081,-3043.79,0.00021369,2]
[388546765,1759236800091,-500.0,0.00021369,2]
[388546766,1759236800100,-500.0,0.00021369,2]
[388546767,1759236800109,-500.0,0.00021369,2]
[388546768,1759236800119,-500.0,0.00021369,2]
[388546769,1759236800129,-500.0,0.00021369,2]
[388546770,1759236800139,-4764.68,0.00021369,2]
[388546771,1759236800148,-883.02,0.00021369,2]
[388546772,1759236800158,-3246.07,0.00021369,2]
[388546773,1759236800168,-1700.17,0.00021369,2]
[388546774,1759236800178,-3132.31,0.00021369,2]
[388546775,1759236800188,-3466.53,0.00021369,2]
[388546776,1759236800199,-500.0,0.00021369,2]
[388546777,1759236800209,-938.56,0.00021369,2]
[388546778,1759236800219,-3057.69,0.00021369,2]
[388546779,1759236800228,-1918.23,0.00021369,2]
[388546780,1759236800238,-1064.22,0.00021369,2]
[388546781,1759236800247,-500.0,0.00021369,2]
[388546782,1759236800256,-500.0,0.00021369,2]
[388546783,1759236800266,-316.20193322,0.00021369,2]
[388546784,1759236800276,-500.0,0.00021369,2]
[388546785,1759236800286,-500.0,0.00021369,2]
[388546786,1759236800296,-1302.1,0.00021369,2]
[388546787,1759236800305,-4492.44,0.00021369,2]
[388546788,1759236800315,-1087.57,0.00021369,2]
[388546789,1759236800324,-3601.0,0.00021369,2]
[388546790,1759236800333,-732.56,0.00021369,2]
[388546791,1759236800342,-500.0,0.00021369,2]
[388546792,1759236800352,-600.0,0.00021369,2]
[388546793,1759236800362,-500.0,0.00021369,2]
[388546794,1759236800372,-4290.21,0.00021369,2]
[388546795,1759236800381,-724.36,0.00021369,2]
[388546796,1759236800391,-4390.54,0.00021369,2]
[388546797,1759236800399,-500.0,0.00021369,2]
[388546798,1759236800408,-828.65,0.00021369,2]
[388546799,1759236800418,-3358.18,0.00021369,2]
[388546800,1759236800428,-500.0,0.00021369,2]
[388546801,1759236800438,-1474.8,0.00021369,2]
[388546802,1759236800447,-2034.42,0.00021369,2]
[388546803,1759236800457,-500.0,0.00021369,2]
[388546804,1759236800467,-930.23,0.00021369,2]
[388546805,1759236800476,-621.73,0.00021369,2]
[388546806,1759236800486,-649.78,0.00021369,2]
[388546807,1759236800496,-5083.1,0.00021369,2]
[388546808,1759236800505,-526.92,0.00021369,2]
[388546809,1759236800514,-3870.52,0.00021369,2]
[388546810,1759236800524,-500.19,0.00021369,2]
[388546811,1759236800534,-4000.09,0.00021369,2]
[388546812,1759236800544,-2882.92,0.00021369,2]
[388546813,1759236800554,-582.24,0.00021369,2]
[388546814,1759236800564,-2589.34,0.00021369,2]
[388546815,1759236800573,-669.58,0.00021369,2]
[388546816,1759236800583,-3909.15,0.00021369,2]
[388546817,1759236800592,-1814.33,0.00021369,2]
[388546818,1759236800602,-3571.88,0.00021369,2]
[388546819,1759236800612,-500.0,0.00021369,2]
[388546820,1759236800622,-1246.74,0.00021369,2]
[388546821,1759236800632,-500.0,0.00021369,2]
[388546822,1759236800643,-3512.3,0.00021369,2]
[388546823,1759236800817,-500.0,0.00021369,2]
[388546824,1759236800828,-906.86,0.00021369,2]
[388546825,1759236800838,-583.0,0.00021369,2]
[388546826,1759236800848,-500.0,0.00021369,2]
[388546827,1759236800858,-3135.66,0.00021369,2]
[388546828,1759236800872,-2151.04,0.00021369,2]
[388546829,1759236800882,-500.0,0.00021369,2]
[388546830,1759236800892,-638.79,0.00021369,2]
[388546831,1759236800902,-500.0,0.00021369,2]
[388546832,1759236800911,-1108.16,0.00021369,2]
[388546833,1759236800921,-638.79,0.00021369,2]
[388546834,1759236800931,-572.19,0.00021369,2]
[388546835,1759236800941,-829.99,0.00021369,2]
[388546836,1759236800950,-657.04,0.00021369,2]
[388546837,1759236800959,-2775.75,0.00021369,2]
[388546838,1759236800971,-1121.19,0.00021369,2]
[388546839,1759236800981,-4624.82,0.00021369,2]
[388546840,1759236800991,-939.33,0.00021369,2]
[388546841,1759236801001,-500.0,0.00021369,2]
[388546842,1759236801010,-1073.2,0.00021369,2]
[388546843,1759236801020,-2580.78,0.00021369,2]
[388546844,1759236801031,-1644.44,0.00021369,2]
[388546845,1759236801042,-4635.08,0.00021369,2]
[388546846,1759236801052,-2774.48,0.00021369,2]
[388546847,1759236801062,-1622.26,0.00021369,2]
[388546848,1759236801072,-500.0,0.00021369,2]
[388546849,1759236801081,-879.12,0.00021369,2]
[388546850,1759236801090,-431.89594617,0.00021369,2]
[388546851,1759236801100,-500.0,0.00021369,2]
[388546852,1759236801110,-4201.08,0.00021369,2]
[388546853,1759236801119,-507.27,0.00021369,2]
[388546854,1759236801129,-500.0,0.00021369,2]
[388546855,1759236801138,-2633.64,0.00021369,2]
[388546856,1759236801147,-500.0,0.00021369,2]
[388546857,1759236801157,-500.0,0.00021369,2]
[388546858,1759236801166,-5296.49,0.00021369,2]
[388546859,1759236801176,-687.91,0.00021369,2]
[388546860,1759236801186,-500.0,0.00021369,2]
[388546861,1759236801195,-1096.67,0.00021369,2]
[388546862,1759236801204,-500.0,0.00021369,2]
[388546863,1759236801213,-3995.31,0.00021369,2]
[388546864,1759236801223,-2031.41,0.00021369,2]
[388546865,1759236801233,-802.84,0.00021369,2]
[388546866,1759236801243,-2195.66,0.00021369,2]
[388546867,1759236801253,-500.0,0.00021369,2]
[388546868,1759236801263,-2315.21,0.00021369,2]
[388546869,1759236801272,-500.0,0.00021369,2]
[388546870,1759236801283,-2795.95,0.00021369,2]
[388546871,1759236801293,-2843.26,0.00021369,2]
[388546872,1759236801302,-500.0,0.00021369,2]
[388546873,1759236801312,-500.0,0.00021369,2]
[388546874,1759236801321,-770.21,0.00021369,2]
[388546875,1759236801331,-500.0,0.00021369,2]
[388546876,1759236801341,-500.0,0.00021369,2]
[388546877,1759236801351,-521.13,0.00021369,2]
[388546878,1759236801361,-1197.5,0.00021369,2]
[388546879,1759236801371,-1731.1,0.00021369,2]
[388546880,1759236801382,-2474.62,0.00021369,2]
[388546881,1759236801391,-1863.44,0.00021369,2]
[388546882,1759236801401,-500.0,0.00021369,2]
[388546883,1759236801411,-500.0,0.00021369,2]
[388546884,1759236801420,-500.0,0.00021369,2]
[388546885,1759236801430,-1335.55,0.00021369,2]
[388546886,1759236801440,-2446.39,0.00021369,2]
[388546887,1759236801449,-568.67,0.00021369,2]
[388546888,1759236801458,-1912.02,0.00021369,2]
[388546889,1759236801468,-621.31,0.00021369,2]
[388546890,1759236801477,-2610.4,0.00021369,2]
[388546891,1759236801487,-1934.01,0.00021369,2]
[388546892,1759236801496,-626.84,0.00021369,2]
[388546893,1759236801506,-385.23009535,0.00021369,2]
[388546894,1759236801515,-598.23,0.00021369,2]
[388546895,1759236801525,-500.0,0.00021369,2]
[388546896,1759236801535,-644.16063399,0.00021369,2]
[388546897,1759236801545,-610.56,0.00021369,2]
[388546898,1759236801555,-500.0,0.00021369,2]
[388546899,1759236801567,-3946.61,0.00021369,2]
[388546900,1759236801578,-786.49,0.00021369,2]
[388546901,1759236801588,-2744.05,0.00021369,2]
[388546902,1759236801597,-500.0,0.00021369,2]
[388546903,1759236801606,-1736.91,0.00021369,2]
[388546904,1759236801615,-500.0,0.00021369,2]
[388546905,1759236801627,-1202.76,0.00021369,2]
[388546906,1759236801638,-1978.62,0.00021369,2]
[388546907,1759236801647,-4345.96,0.00021369,2]
[388546908,1759236801656,-599.39,0.00021369,2]
[388546909,1759236801667,-925.67,0.00021369,2]
[388546910,1759236801677,-648.45,0.00021369,2]
[388546911,1759236801687,-1318.96,0.00021369,2]
[388546912,1759236801696,-500.0,0.00021369,2]
[388546913,1759236801705,-500.0,0.00021369,2]
[388546914,1759236801714,-3545.03,0.00021369,2]
[388546915,1759236801724,-2922.79,0.00021369,2]
[388546916,1759236801733,-500.0,0.00021369,2]
[388546917,1759236801743,-500.0,0.00021369,2]
[388546918,1759236801753,-1854.6,0.00021369,2]
[388546919,1759236801762,-787.29,0.00021369,2]
[388546920,1759236801772,-3075.3,0.00021369,2]
[388546921,1759236801782,-500.0,0.00021369,2]
[388546922,1759236801795,-500.0,0.00021369,2]
[388546923,1759236801808,-3309.16,0.00021369,2]
[388546924,1759236801817,-4252.51,0.00021369,2]
[388546925,1759236801827,-4836.52,0.00021369,2]
[388546926,1759236801836,-505.42,0.00021369,2]
[388546927,1759236801846,-500.0,0.00021369,2]
[388546928,1759236801856,-610.04,0.00021369,2]
[388546929,1759236801869,-500.0,0.00021369,2]
[388546930,1759236801879,-2771.3,0.00021369,2]
[388546931,1759236801889,-2300.54,0.00021369,2]
[388546932,1759236801899,-500.0,0.00021369,2]
[388546933,1759236801910,-500.0,0.00021369,2]
[388546934,1759236801919,-1600.72,0.00021369,2]
[388546935,1759236801929,-232.4213753,0.00021369,2]
[388546936,1759236801941,-4537.1,0.00021369,2]
[388546937,1759236801950,-3468.68,0.00021369,2]
[388546938,1759236801960,-4138.34,0.00021369,2]
[388546939,1759236801970,-500.0,0.00021369,2]
[388546940,1759236801979,-2219.19,0.00021369,2]
[388546941,1759236801988,-1285.88,0.00021369,2]
[388546942,1759236801998,-865.96,0.00021369,2]
[388546943,1759236802007,-500.0,0.00021369,2]
[388546944,1759236802017,-500.0,0.00021369,2]
[388546945,1759236802028,-500.0,0.00021369,2]
[388546946,1759236802038,-1028.47,0.00021369,2]
[388546947,1759236802047,-3259.44,0.00021369,2]
[388546948,1759236802058,-836.63,0.00021369,2]
[388546949,1759236802069,-3419.59,0.00021369,2]
[388546950,1759236802079,-2557.33,0.00021369,2]
[388546951,1759236802089,-2084.4,0.00021369,2]
[388546952,1759236802099,-8334.17,0.00021369,2]
[388546953,1759236802108,-1859.67,0.00021369,2]
[388546954,1759236802118,-618.66,0.00021369,2]
[388546955,1759236802127,-697.8,0.00021369,2]
[388546956,1759236802137,-500.0,0.00021369,2]
[388546957,1759236802147,-500.0,0.00021369,2]
[388546958,1759236802156,-872.72,0.00021369,2]
[388546959,1759236802166,-2834.78,0.00021369,2]
[388546960,1759236802175,-871.1,0.00021369,2]
[388546961,1759236802185,-1859.04,0.00021369,2]
[388546962,1759236802194,-1063.98,0.00021369,2]
[388546963,1759236802204,-509.5,0.00021369,2]
[388546964,1759236802214,-500.0,0.00021369,2]
[388546965,1759236802223,-10507.95,0.00021369,2]
[388546966,1759236802233,-929.49,0.00021369,2]
[388546967,1759236802243,-500.0,0.00021369,2]
[388546968,1759236802252,-745.96,0.00021369,2]
[388546969,1759236802262,-4439.11,0.00021369,2]
[388546970,1759236802271,-2792.99,0.00021369,2]
[388546971,1759236802281,-500.0,0.00021369,2]
[388546972,1759236802291,-989.05,0.00021369,2]
[388546973,1759236802301,-4340.48,0.00021369,2]
[388546974,1759236802311,-1279.39,0.00021369,2]
[388546975,1759236802320,-500.0,0.00021369,2]
[388546976,1759236802329,-2129.67,0.00021369,2]
[388546977,1759236802339,-548.12,0.00021369,2]
[388546978,1759236802349,-500.0,0.00021369,2]
[388546979,1759236802358,-3669.84,0.00021369,2]
[388546980,1759236802368,-805.4,0.00021369,2]
[388546981,1759236802378,-3523.25,0.00021369,2]
[388546982,1759236802387,-2285.37,0.00021369,2]
[388546983,1759236802397,-521.6941661,0.00021369,2]
[388546984,1759236802407,-5551.49,0.00021369,2]
[388546985,1759236802418,-5950.02,0.00021369,2]
[388546986,1759236802428,-6330.81,0.00021369,2]
[388546987,1759236802437,-4104.25,0.00021369,2]
[388546988,1759236802447,-1154.61,0.00021369,2]
[388546989,1759236802456,-1583.44,0.00021369,2]
[388546990,1759236802466,-546.47,0.00021369,2]
[388546991,1759236802476,-1613.6,0.00021369,2]
[388546992,1759236802486,-2256.46,0.00021369,2]
[388546993,1759236802496,-576.79,0.00021369,2]
[388546994,1759236802505,-4612.6,0.00021369,2]
[388546995,1759236802515,-1406.64,0.00021369,2]
[388546996,1759236802525,-15617.62,0.00021369,2]
[388546997,1759236802534,-893.75,0.00021369,2]
[388546998,1759236802544,-708.23,0.00021369,2]
[388546999,1759236802554,-500.0,0.00021369,2]
[388547000,1759236802563,-500.0,0.00021369,2]
[388547001,1759236802573,-7867.12,0.00021369,2]
[388547002,1759236802582,-3222.59,0.00021369,2]
[388547003,1759236802590,-4430.21,0.00021369,2]
[388547004,1759236802600,-3094.31,0.00021369,2]
[388547005,1759236802609,-8599.07,0.00021369,2]
[388547006,1759236802619,-500.0,0.00021369,2]
[388547007,1759236802628,-1608.86,0.00021369,2]
[388547008,1759236802638,-4834.6,0.00021369,2]
[388547009,1759236802647,-535.69,0.00021369,2]
[388547010,1759236802657,-5002.0,0.00021369,2]
[388547011,1759236802667,-771.77,0.00021369,2]
[388547012,1759236802676,-2260.51,0.00021369,2]
[388547013,1759236802685,-6082.65,0.00021369,2]
[388547014,1759236802695,-4224.68,0.00021369,2]
[388547015,1759236802705,-500.0,0.00021369,2]
[388547016,1759236802715,-2607.66,0.00021369,2]
[388547017,1759236802725,-4485.22,0.00021369,2]
[388547018,1759236802734,-782.32,0.00021369,2]
[388547019,1759236802744,-4052.2,0.00021369,2]
[388547020,1759236802756,-500.0,0.00021369,2]
[388547021,1759236802767,-500.0,0.00021369,2]
[388547022,1759236802777,-3481.91,0.00021369,2]
[388547023,1759236802788,-1404.94,0.00021369,2]
[388547024,1759236802798,-4198.69,0.00021369,2]
[388547025,1759236802808,-2345.29,0.00021369,2]
[388547026,1759236802818,-886.09,0.00021369,2]
[388547027,1759236802828,-11810.4,0.00021369,2]
[388547028,1759236802838,-854.6,0.00021369,2]
[388547029,1759236802846,-559.36,0.00021369,2]
[388547030,1759236802856,-500.0,0.00021369,2]
[388547031,1759236802869,-4218.11,0.00021369,2]
[388547032,1759236802878,-11135.57,0.00021369,2]
[388547033,1759236802888,-481.91042535,0.00021369,2]
[388547034,1759236802897,-966.27,0.00021369,2]
[388547035,1759236802907,-4919.51,0.00021369,2]
[388547036,1759236802916,-604.98617518,0.00021369,2]
[388547037,1759236802927,-4531.41,0.00021369,2]
[388547038,1759236802936,-296.32859619,0.00021369,2]
[388547039,1759236802945,-1390.21,0.00021369,2]
[388547040,1759236802955,-1775.8,0.00021369,2]
[388547041,1759236802964,-3442.87,0.00021369,2]
[388547042,1759236802973,-500.0,0.00021369,2]
[388547043,1759236802983,-500.0,0.00021369,2]
[388547044,1759236802993,-738.87,0.00021369,2]
[388547045,1759236803003,-1630.94,0.00021369,2]
[388547046,1759236803012,-986.68,0.00021369,2]
[388547047,1759236803022,-1338.26,0.00021369,2]
[388547048,1759236803032,-500.0,0.00021369,2]
[388547049,1759236803042,-934.2,0.00021369,2]
[388547050,1759236803357,-958.77,0.00021369,2]
[388547051,1759236803435,-500.0,0.00021369,2]
[388547052,1759236803445,-2361.94,0.00021369,2]
[388547053,1759236803456,-500.0,0.00021369,2]
[388547054,1759236803465,-5791.96,0.00021369,2]
[388547055,1759236803475,-1117.79,0.00021369,2]
[388547056,1759236803484,-4271.07,0.00021369,2]
[388547057,1759236803494,-200.28302972,0.00021369,2]
[388547058,1759236803504,-333.13778918,0.00021369,2]
[388547059,1759236803513,-500.0,0.00021369,2]
[388547060,1759236803522,-500.0,0.00021369,2]
[388547061,1759236803531,-3304.23,0.00021369,2]
[388547062,1759236803540,-715.09,0.00021369,2]
[388547063,1759236803550,-5730.05,0.00021369,2]
[388547064,1759236803560,-1235.06,0.00021369,2]
[388547065,1759236803570,-3680.77,0.00021369,2]
[388547066,1759236803580,-937.61,0.00021369,2]
[388547067,1759236803589,-2811.19,0.00021369,2]
[388547068,1759236803599,-730.34,0.00021369,2]
[388547069,1759236803608,-4400.59,0.00021369,2]
[388547070,1759236803617,-5411.44,0.00021369,2]
[388547071,1759236803627,-781.28,0.00021369,2]
[388547072,1759236803637,-500.0,0.00021369,2]
[388547073,1759236803647,-1451.45,0.00021369,2]
[388547074,1759236803656,-775.98,0.00021369,2]
[388547075,1759236803665,-500.0,0.00021369,2]
[388547076,1759236803675,-5464.08,0.00021369,2]
[388547077,1759236803685,-4496.61,0.00021369,2]
[388547078,1759236803694,-4726.46,0.00021369,2]
[388547079,1759236803704,-5259.88,0.00021369,2]
[388547080,1759236803714,-500.0,0.00021369,2]
[388547081,1759236803723,-500.0,0.00021369,2]
[388547082,1759236803732,-500.0,0.00021369,2]
[388547083,1759236803741,-4349.5,0.00021369,2]
[388547084,1759236803753,-500.0,0.00021369,2]
[388547085,1759236803762,-500.0,0.00021369,2]
[388547086,1759236803773,-500.0,0.00021369,2]
[388547087,1759236803782,-5606.8,0.00021369,2]
[388547088,1759236803793,-2939.81,0.00021369,2]
[388547089,1759236803803,-3908.19,0.00021369,2]
[388547090,1759236803813,-500.0,0.00021369,2]
[388547091,1759236803823,-3323.26,0.00021369,2]
[388547092,1759236803832,-2283.42,0.00021369,2]
[388547093,1759236803842,-1821.92,0.00021369,2]
[388547094,1759236803852,-1256.35,0.00021369,2]
[388547095,1759236803866,-1954.99,0.00021369,2]
[388547096,1759236803875,-4512.75,0.00021369,2]
[388547097,1759236803885,-3925.81,0.00021369,2]
[388547098,1759236803895,-500.0,0.00021369,2]
[388547099,1759236803905,-6111.21,0.00021369,2]
[388547100,1759236803915,-500.0,0.00021369,2]
[388547101,1759236803924,-2841.53,0.00021369,2]
[388547102,1759236803934,-8170.98,0.00021369,2]
[388547103,1759236803945,-500.0,0.00021369,2]
[388547104,1759236803954,-1249.51,0.00021369,2]
[388547105,1759236803965,-2157.39,0.00021369,2]
[388547106,1759236803975,-3100.53,0.00021369,2]
[388547107,1759236803985,-5064.26,0.00021369,2]
[388547108,1759236803995,-3871.47,0.00021369,2]
[388547109,1759236804004,-761.53,0.00021369,2]
[388547110,1759236804014,-500.0,0.00021369,2]
[388547111,1759236804023,-3113.64,0.00021369,2]
[388547112,1759236804034,-3678.71,0.00021369,2]
[388547113,1759236804044,-1552.44,0.00021369,2]
[388547114,1759236804054,-1427.41,0.00021369,2]
[388547115,1759236804063,-2755.02,0.00021369,2]
[388547116,1759236804073,-500.0,0.00021369,2]
[388547117,1759236804083,-6442.41,0.00021369,2]
[388547118,1759236804093,-875.73,0.00021369,2]
[388547119,1759236804102,-2781.0,0.00021369,2]
[388547120,1759236804112,-694.15,0.00021369,2]
[388547121,1759236804122,-1860.95,0.00021369,2]
[388547122,1759236804132,-826.29,0.00021369,2]
[388547123,1759236804142,-1340.22,0.00021369,2]
[388547124,1759236804152,-22451.0,0.00021369,2]
[388547125,1759236804162,-4022.76,0.00021369,2]
[388547126,1759236804172,-6949.9,0.00021369,2]
[388547127,1759236804182,-7280.81,0.00021369,2]
[388547128,1759236804191,-500.0,0.00021369,2]
[388547129,1759236804201,-500.0,0.00021369,2]
[388547130,1759236804210,-5522.62,0.00021369,2]
[388547131,1759236804220,-500.0,0.00021369,2]
[388547132,1759236804230,-4837.09,0.00021369,2]
[388547133,1759236804239,-610.29,0.00021369,2]
[388547134,1759236804249,-529.91,0.00021369,2]
[388547135,1759236804259,-647.37,0.00021369,2]
[388547136,1759236804269,-3296.57,0.00021369,2]
[388547137,1759236804279,-2405.12,0.00021369,2]
[388547138,1759236804289,-858.6,0.00021369,2]
[388547139,1759236804299,-1934.59,0.00021369,2]
[388547140,1759236804309,-500.0,0.00021369,2]
[388547141,1759236804319,-2171.4,0.00021369,2]
[388547142,1759236804328,-3571.8,0.00021369,2]
[388547143,1759236804338,-8309.91,0.00021369,2]
[388547144,1759236804348,-1072.81,0.00021369,2]
[388547145,1759236804358,-602.4272774,0.00021369,2]
[388547146,1759236804368,-8791.84,0.00021369,2]
[388547147,1759236804378,-500.0,0.00021369,2]
[388547148,1759236804388,-500.0,0.00021369,2]
[388547149,1759236804398,-500.0,0.00021369,2]
[388547150,1759236804407,-1146.39,0.00021369,2]
[388547151,1759236804417,-5681.34,0.00021369,2]
[388547152,1759236804427,-500.0,0.00021369,2]
[388547153,1759236804436,-4544.53,0.00021369,2]
[388547154,1759236804446,-550.71,0.00021369,2]
[388547155,1759236804457,-931.46,0.00021369,2]
[388547156,1759236804467,-1091.82,0.00021369,2]
[388547157,1759236804477,-3373.16,0.00021369,2]
[388547158,1759236804487,-500.0,0.00021369,2]
[388547159,1759236804496,-6286.35,0.00021369,2]
[388547160,1759236804506,-2088.79,0.00021369,2]
[388547161,1759236804516,-995.39,0.00021369,2]
[388547162,1759236804526,-20780.06,0.00021369,2]
[388547163,1759236804535,-1361.61,0.00021369,2]
[388547164,1759236804545,-552.85,0.00021369,2]
[388547165,1759236804555,-1382.23,0.00021369,2]
[388547166,1759236804566,-626.59,0.00021369,2]
[388547167,1759236804577,-500.0,0.00021369,2]
[388547168,1759236804586,-7317.79,0.00021369,2]
[388547169,1759236804597,-863.38,0.00021369,2]
[388547170,1759236804607,-500.0,0.00021369,2]
[388547171,1759236804619,-500.0,0.00021369,2]
[388547172,1759236804628,-1085.95,0.00021369,2]
[388547173,1759236804638,-2931.23,0.00021369,2]
[388547174,1759236804649,-955.85,0.00021369,2]
[388547175,1759236804659,-500.0,0.00021369,2]
[388547176,1759236804669,-4502.44,0.00021369,2]
[388547177,1759236804679,-583.56,0.00021369,2]
[388547178,1759236804688,-2124.7,0.00021369,2]
[388547179,1759236804698,-600.59,0.00021369,2]
[388547180,1759236804707,-500.0,0.00021369,2]
[388547181,1759236804718,-946.36,0.00021369,2]
[388547182,1759236804729,-500.0,0.00021369,2]
[388547183,1759236804740,-647.51,0.00021369,2]
[388547184,1759236804750,-1399.78696616,0.00021369,2]
[388547185,1759236805616,-0.00022466,0.00021369,2]
[388547186,1759236805631,-163.21280918,0.00021369,2]